fUSD/lending_fUSD_20251113
["ID","MTS","AMOUNT","RATE_DAILY","PERIOD"]
[393801238,1763003431967,-512.96823338,0.00024799,2]
[393801239,1763003431976,-204.30571111,0.00024799,2]
[393801240,1763003431985,-2000.0,0.000248,2]
[393801241,1763003431994,-506.72807808,0.00024873,2]
[393801242,1763003432003,-151.37,0.00024921,2]
[393801243,1763003432012,-1000.0,0.00024944,2]
[393801244,1763003432022,-7244.52958762,0.00025,10]
[393801245,1763003432031,-11772.66617995,0.00025059,2]
[393801246,1763003432040,-166.66,0.00025159,2]
[393801247,1763003432050,-581.24442432,0.00025321,2]
[393801248,1763003432059,-1272.26,0.00025673,2]
[393801249,1763003432068,-1000.0,0.00025845,2]
[393801250,1763003432077,-3457.61,0.0002589,2]
[393801251,1763003432086,-166.66,0.00025938,2]
[393801252,1763003432096,-4609.0,0.00026015,2]
[393801253,1763003432105,-1272.26,0.00026669,2]
[393801254,1763003432117,-358.27,0.00026676,2]
[393801255,1763003432126,-166.66,0.00026718,2]
[393801256,1763003432136,-2968.69325,0.00026728,2]
[393801257,1763003432146,-1000.0,0.00026747,2]
[393801258,1763003432155,-11772.66617992,0.00026779,2]
[393801259,1763003432164,-176.25,0.00026815,2]
[393801260,1763003432174,-502.00096171,0.00027087,2]
[393801261,1763003432183,-501.95355844,0.00027087,2]
[393801262,1763003432192,-1000.0,0.00027359,2]
[393801263,1763003432202,-166.66,0.00027497,2]
[393801264,1763003432211,-478.69779641,0.00027509,2]
[393801265,1763003432221,-500.0,0.00027562,2]
[393801266,1763003432230,-1000.0,0.00027648,2]
[393801267,1763003432240,-1272.26,0.00027665,2]
[393801268,1763003432250,-166.79258305,0.00027762,5]
[393801269,1763003432259,-500.0,0.00027762,5]
[393801270,1763003432268,-500.0,0.00027777,5]
[393801271,1763003432277,-200.0,0.00027917,2]
[393801272,1763003432287,-161.00799603,0.00028093,5]
[393801273,1763003432296,-500.0,0.00028093,5]
[393801274,1763003432305,-500.67558948,0.00028093,5]
[393801275,1763003432314,-226.79333909,0.00028143,20]
[393801276,1763003432323,-500.0,0.00028143,20]
[393801277,1763003432332,-500.0,0.00028143,7]
[393801278,1763003432342,-64.639583,0.00028154,31]
[393801279,1763003432351,-154.084957,0.00028154,31]
[393801280,1763003432361,-153.728775,0.00028154,31]
[393801281,1763003432370,-151.0,0.00028154,31]
[393801282,1763003432380,-200.0,0.00028196,2]
[393801283,1763003432389,-150.0,0.00028219,2]
[393801284,1763003432398,-1000.0,0.0002831,5]
[393801285,1763003432408,-1145.28559714,0.00028325,5]
[393801286,1763003432417,-200.0,0.00028478,2]
[393801287,1763003432427,-11772.66617992,0.00028499,2]
[393801288,1763003432437,-1004.0,0.000285,2]
[393801289,1763003432448,-3641.0,0.00028524,2]
[393801290,1763003432458,-200.0,0.00028541,5]
[393801291,1763003432467,-20063.4956642,0.00028544,2]
[393801292,1763003432477,-500.0,0.00028573,5]
[393801293,1763003432487,-500.0,0.00028573,5]
[393801294,1763003432496,-500.0,0.00028573,5]
[393801295,1763003432505,-500.0,0.00028573,5]
[393801296,1763003432515,-500.0,0.00028573,5]
[393801297,1763003432528,-526.9419325,0.00028573,5]
[393801298,1763003432538,-1000.0,0.00028641,5]
[393801299,1763003432547,-151.0,0.00028661,31]
[393801300,1763003432556,-151.631959,0.00028661,31]
[393801301,1763003432568,-154.14105,0.00028661,31]
[393801302,1763003432577,-153.129539,0.00028661,31]
[393801303,1763003432587,-151.0,0.00028661,31]
[393801304,1763003432598,-153.390473,0.00028661,31]
[393801305,1763003432607,-151.0,0.00028661,31]
[393801306,1763003432617,-190.373599,0.00028661,31]
[393801307,1763003432627,-151.0,0.00028661,31]
[393801308,1763003432636,-151.000003,0.00028661,31]
[393801309,1763003432645,-1003.19,0.00028661,14]
[393801310,1763003432655,-1272.26,0.00028661,2]
[393801311,1763003432665,-141.62767946,0.00028728,2]
[393801312,1763003432677,-2827.06557054,0.00028728,2]
[393801313,1763003432687,-200.0,0.00028763,2]
[393801314,1763003432697,-506.54758943,0.00028858,5]
[393801315,1763003432707,-1003.19,0.00028935,14]
[393801316,1763003432717,-200.0,0.00029051,2]
[393801317,1763003432727,-151.0,0.00029102,31]
[393801318,1763003432736,-151.0,0.00029102,31]
[393801319,1763003432746,-166.359271,0.00029102,31]
[393801320,1763003432755,-151.0,0.00029102,31]
[393801321,1763003432765,-500.0,0.00029111,20]
[393801322,1763003432775,-500.0,0.00029111,7]
[393801323,1763003432784,-193.063553,0.00029112,31]
[393801324,1763003432793,-151.0,0.00029112,31]
[393801325,1763003432803,-151.0,0.00029112,31]
[393801326,1763003432812,-151.0,0.00029112,31]
[393801327,1763003432822,-527.98,0.0002912,2]
[393801328,1763003432831,-1000.0,0.00029121,5]
[393801329,1763003432841,-1069.20872666,0.00029121,5]
[393801330,1763003432850,-852.60446114,0.00029121,5]
[393801331,1763003432860,-500.0,0.00029121,5]
[393801332,1763003432870,-1000.0,0.00029121,5]
[393801333,1763003432879,-1842.0,0.00029122,5]
[393801334,1763003432889,-151.0,0.00029122,31]
[393801335,1763003432899,-151.0,0.00029122,31]
[393801336,1763003432909,-153.933941,0.00029122,31]
[393801337,1763003432919,-159.04,0.00029184,2]
[393801338,1763003432928,-1504.68800049,0.00029189,5]
[393801339,1763003432937,-478.69779641,0.000292,30]
[393801340,1763003432947,-1003.19,0.00029209,14]
[393801341,1763003432956,-400.0,0.00029226,5]
[393801342,1763003432966,-916.71175649,0.00029339,3]
[393801343,1763003432975,-916.7117565,0.00029339,3]
[393801344,1763003432984,-4476.7710007,0.00029398,2]
[393801345,1763003432993,-1003.19,0.00029483,14]
[393801346,1763003433003,-207.90360421,0.00029604,2]
[393801347,1763003433012,-1272.26,0.00029657,2]
[393801348,1763003433021,-1017.85474684,0.00029668,5]
[393801349,1763003433030,-810.92938163,0.00029668,5]
[393801350,1763003433040,-151.0,0.00029695,31]
[393801351,1763003433049,-151.0,0.00029695,31]
[393801352,1763003433059,-154.894356,0.00029695,31]
[393801353,1763003433068,-153.005814,0.00029695,31]
[393801354,1763003433077,-153.286078,0.00029695,31]
[393801355,1763003433087,-151.0,0.00029695,31]
[393801356,1763003433096,-151.0,0.00029695,31]
[393801357,1763003433106,-151.0,0.00029695,31]
[393801358,1763003433116,-151.0,0.00029695,31]
[393801359,1763003433125,-151.0,0.00029695,31]
[393801360,1763003433134,-151.0,0.00029695,30]
[393801361,1763003433144,-151.0,0.00029695,31]
[393801362,1763003433154,-151.0,0.00029695,31]
[393801363,1763003433163,-167.587005,0.00029695,31]
[393801364,1763003433172,-151.0,0.00029695,14]
[393801365,1763003433182,-154.266342,0.00029695,31]
[393801366,1763003433191,-151.0,0.00029695,31]
[393801367,1763003433201,-151.0,0.00029695,31]
[393801368,1763003433211,-170.634603,0.00029695,31]
[393801369,1763003433220,-151.0,0.00029695,31]
[393801370,1763003433229,-151.0,0.00029695,31]
[393801371,1763003433239,-1156.61,0.00029704,30]
[393801372,1763003433248,-1003.19,0.00029757,14]
[393801373,1763003433257,-486.86009384,0.00029787,2]
[393801374,1763003433267,-8669.74592165,0.0002979,3]
[393801375,1763003433277,-151.0,0.000298,31]
[393801376,1763003433286,-151.0,0.000298,31]
[393801377,1763003433295,-151.0,0.000298,31]
[393801378,1763003433305,-151.0,0.000298,31]
[393801379,1763003433315,-151.0,0.000298,31]
[393801380,1763003433324,-252.942506,0.000298,31]
[393801381,1763003433334,-252.942506,0.000298,31]
[393801382,1763003433343,-151.0,0.000298,31]
[393801383,1763003433352,-151.0,0.000298,31]
[393801384,1763003433361,-252.942506,0.000298,31]
[393801385,1763003433371,-252.942506,0.000298,31]
[393801386,1763003433380,-151.0,0.000298,31]
[393801387,1763003433389,-151.0,0.000298,31]
[393801388,1763003433399,-151.0,0.000298,31]
[393801389,1763003433409,-151.0,0.000298,31]
[393801390,1763003433419,-151.0,0.000298,31]
[393801391,1763003433428,-151.0,0.000298,31]
[393801392,1763003433437,-151.0,0.000298,31]
[393801393,1763003433446,-151.0,0.000298,31]
[393801394,1763003433456,-151.0,0.000298,31]
[393801395,1763003433465,-151.0,0.000298,31]
[393801396,1763003433474,-151.0,0.000298,31]
[393801397,1763003433484,-151.0,0.000298,31]
[393801398,1763003433606,-151.0,0.000298,31]
[393801399,1763003433639,-151.0,0.000298,31]
[393801400,1763003433648,-159.04,0.00029825,2]
[393801401,1763003433657,-500.0,0.000299,10]
[393801402,1763003433667,-600.0,0.00029911,5]
[393801403,1763003433676,-171.33,0.0002999,2]
[393801404,1763003433686,-5060.61263944,0.0003,8]
[393801405,1763003433695,-1003.19,0.00030031,14]
[393801406,1763003433705,-165.96458532,0.00030037,15]
[393801407,1763003433715,-17235.81517846,0.00030055,2]
[393801408,1763003433730,-5985.40565,0.00030055,2]
[393801409,1763003433740,-151.0,0.0003012,31]
[393801410,1763003433751,-151.0,0.0003012,31]
[393801411,1763003433761,-152.145579,0.0003012,31]
[393801412,1763003433771,-151.0,0.0003012,31]
[393801413,1763003433781,-151.0,0.0003012,31]
[393801414,1763003433791,-151.0,0.0003012,31]
[393801415,1763003433801,-156.867715,0.0003012,31]
[393801416,1763003433812,-152.863393,0.0003012,31]
[393801417,1763003433822,-151.0,0.0003012,30]
[393801418,1763003433831,-8669.74592165,0.00030127,3]
[393801419,1763003433841,-468.8353661,0.0003013,30]
[393801420,1763003433851,-200.0,0.0003013,2]
[393801421,1763003433865,-500.0,0.00030136,20]
[393801422,1763003433875,-500.0,0.00030136,7]
[393801423,1763003433884,-151.0,0.00030137,31]
[393801424,1763003433895,-151.0,0.00030137,31]
[393801425,1763003433905,-200.0,0.00030137,2]
[393801426,1763003433915,-150.0,0.00030137,60]
[393801427,1763003433924,-150.0,0.00030137,60]
[393801428,1763003433933,-150.0,0.00030137,60]
[393801429,1763003433942,-500.0,0.00030137,60]
[393801430,1763003433951,-500.0,0.00030137,60]
[393801431,1763003433961,-150.0,0.00030137,60]
[393801432,1763003433970,-500.0,0.00030137,60]
[393801433,1763003433980,-150.0,0.00030137,60]
[393801434,1763003433989,-500.0,0.00030137,60]
[393801435,1763003433999,-500.0,0.00030137,48]
[393801436,1763003434008,-150.0,0.00030137,60]
[393801437,1763003434017,-150.0,0.00030137,60]
[393801438,1763003434027,-500.0,0.00030137,60]
[393801439,1763003434036,-151.07238024,0.00030137,60]
[393801440,1763003434046,-500.0,0.00030137,60]
[393801441,1763003434055,-150.0,0.00030137,60]
[393801442,1763003434064,-500.0,0.00030137,60]
[393801443,1763003434073,-150.0,0.00030137,60]
[393801444,1763003434083,-150.0,0.00030137,60]
[393801445,1763003434093,-500.0,0.00030137,60]
[393801446,1763003434102,-500.0,0.00030137,60]
[393801447,1763003434113,-500.0,0.00030137,60]
[393801448,1763003434125,-500.0,0.00030137,60]
[393801449,1763003434134,-500.0,0.00030137,60]
[393801450,1763003434143,-500.0,0.00030137,60]
[393801451,1763003434153,-500.0,0.00030137,60]
[393801452,1763003434162,-500.0,0.00030137,60]
[393801453,1763003434172,-500.0,0.00030137,60]
[393801454,1763003434181,-500.0,0.00030137,60]
[393801455,1763003434190,-197.74868865,0.00030137,60]
[393801456,1763003434199,-500.0,0.00030137,60]
[393801457,1763003434209,-500.0,0.00030137,14]
[393801458,1763003434219,-500.0,0.00030137,2]
[393801459,1763003434228,-151.74797431,0.00030137,60]
[393801460,1763003434237,-500.0,0.00030137,60]
[393801461,1763003434247,-200.0,0.00030137,2]
[393801462,1763003434256,-500.0,0.00030137,21]
[393801463,1763003434265,-151.67420441,0.00030137,60]
[393801464,1763003434275,-150.0,0.00030137,60]
[393801465,1763003434284,-500.0,0.00030137,60]
[393801466,1763003434293,-150.0,0.00030137,2]
[393801467,1763003434302,-163.03237847,0.00030137,60]
[393801468,1763003434311,-500.0,0.00030137,2]
[393801469,1763003434320,-150.0,0.00030137,2]
[393801470,1763003434329,-500.0,0.00030137,60]
[393801471,1763003434338,-500.0,0.00030137,60]
[393801472,1763003434347,-150.0,0.00030137,2]
[393801473,1763003434357,-500.0,0.00030137,60]
[393801474,1763003434367,-150.0,0.00030137,2]
[393801475,1763003434377,-472.0,0.00030137,60]
[393801476,1763003434386,-650.0,0.00030137,60]
[393801477,1763003434395,-200.0,0.00030137,2]
[393801478,1763003434404,-500.0,0.00030137,60]
[393801479,1763003434413,-500.0,0.00030137,60]
[393801480,1763003434422,-441.0,0.00030137,2]
[393801481,1763003434431,-800.0,0.00030137,60]
[393801482,1763003434440,-8669.74592165,0.00030144,3]
[393801483,1763003434450,-156.042706,0.00030154,14]
[393801484,1763003434459,-153.103457,0.00030154,31]
[393801485,1763003434468,-155.775543,0.00030154,31]
[393801486,1763003434477,-151.0,0.00030154,31]
[393801487,1763003434486,-527.98,0.00030154,2]
[393801488,1763003434495,-8669.74592165,0.00030154,3]
[393801489,1763003434505,-151.0,0.00030155,31]
[393801490,1763003434514,-151.0,0.00030155,31]
[393801491,1763003434527,-151.0,0.00030155,31]
[393801492,1763003434537,-256.662992,0.00030155,31]
[393801493,1763003434546,-151.0,0.00030155,31]
[393801494,1763003434555,-230.303327,0.00030155,31]
[393801495,1763003434565,-152.469661,0.00030155,31]
[393801496,1763003434574,-151.0,0.00030155,31]
[393801497,1763003434588,-151.0,0.00030155,30]
[393801498,1763003434599,-151.0,0.00030155,31]
[393801499,1763003434610,-154.277554,0.00030155,31]
[393801500,1763003434619,-151.0,0.00030155,31]
[393801501,1763003434628,-169.885497,0.00030155,31]
[393801502,1763003434638,-153.280428,0.00030155,31]
[393801503,1763003434648,-151.672268,0.00030155,31]
[393801504,1763003434658,-252.942506,0.00030155,31]
[393801505,1763003434668,-252.942506,0.00030155,31]
[393801506,1763003434679,-153.004052,0.00030155,31]
[393801507,1763003434688,-151.0,0.00030155,31]
[393801508,1763003434699,-252.942506,0.00030155,31]
[393801509,1763003434708,-252.942506,0.00030155,31]
[393801510,1763003434717,-151.0,0.00030155,31]
[393801511,1763003434726,-151.0,0.00030155,31]
[393801512,1763003434736,-151.0,0.00030155,31]
[393801513,1763003434745,-151.0,0.00030155,31]
[393801514,1763003434754,-151.0,0.00030155,31]
[393801515,1763003434764,-151.0,0.00030155,31]
[393801516,1763003434774,-151.0,0.00030155,31]
[393801517,1763003434784,-151.0,0.00030155,31]
[393801518,1763003434794,-155.741649,0.00030155,31]
[393801519,1763003434803,-151.0,0.00030155,31]
[393801520,1763003434812,-151.0,0.00030155,31]
[393801521,1763003434822,-151.0,0.00030155,31]
[393801522,1763003434831,-151.0,0.00030155,31]
[393801523,1763003434840,-151.000005,0.00030155,31]
[393801524,1763003434849,-155.019124,0.00030164,31]
[393801525,1763003434859,-156.463554,0.00030164,31]
[393801526,1763003434871,-166.935786,0.00030164,31]
[393801527,1763003434880,-155.224962,0.00030164,31]
[393801528,1763003434889,-151.0,0.00030164,31]
[393801529,1763003434899,-151.0,0.00030164,31]
[393801530,1763003434908,-151.0,0.00030164,31]
[393801531,1763003434917,-202.06262284,0.00030164,60]
[393801532,1763003434926,-150.0,0.00030164,60]
[393801533,1763003434935,-150.0,0.00030164,60]
[393801534,1763003434945,-500.0,0.00030164,60]
[393801535,1763003434954,-500.0,0.00030164,60]
[393801536,1763003434963,-267.22218459,0.00030164,60]
[393801537,1763003434973,-500.0,0.00030164,60]
[393801538,1763003434981,-242.16541251,0.00030164,60]
[393801539,1763003434991,-639.40441132,0.00030164,60]
[393801540,1763003435000,-500.0,0.00030164,48]
[393801541,1763003435009,-158.96480737,0.00030164,60]
[393801542,1763003435018,-150.0,0.00030164,60]
[393801543,1763003435027,-500.0,0.00030164,60]
[393801544,1763003435037,-500.0,0.00030164,60]
[393801545,1763003435047,-150.0,0.00030164,60]
[393801546,1763003435056,-500.0,0.00030164,60]
[393801547,1763003435066,-152.66728149,0.00030164,60]
[393801548,1763003435075,-155.57268512,0.00030164,60]
[393801549,1763003435084,-500.0,0.00030164,60]
[393801550,1763003435094,-500.0,0.00030164,14]
[393801551,1763003435103,-500.0,0.00030164,2]
[393801552,1763003435115,-500.0,0.00030164,60]
[393801553,1763003435124,-500.0,0.00030164,21]
[393801554,1763003435133,-150.0,0.00030164,60]
[393801555,1763003435142,-500.0,0.00030164,60]
[393801556,1763003435151,-500.0,0.00030164,60]
[393801557,1763003435161,-500.0,0.00030164,60]
[393801558,1763003435170,-408.45790101,0.00030164,60]
[393801559,1763003435179,-472.0,0.00030164,60]
[393801560,1763003435189,-650.0,0.00030164,60]
[393801561,1763003435198,-578.40238363,0.00030164,60]
[393801562,1763003435207,-500.0,0.00030164,60]
[393801563,1763003435216,-441.0,0.00030164,2]
[393801564,1763003435227,-800.0,0.00030164,60]
[393801565,1763003435236,-8669.74592165,0.00030172,3]
[393801566,1763003435247,-154.879068,0.00030182,31]
[393801567,1763003435256,-151.0,0.00030182,31]
[393801568,1763003435266,-150.0,0.00030192,60]
[393801569,1763003435275,-150.0,0.00030192,60]
[393801570,1763003435285,-162.5471274,0.00030192,60]
[393801571,1763003435296,-314.4734072,0.00030192,60]
[393801572,1763003435306,-500.0,0.00030192,60]
[393801573,1763003435316,-500.0,0.00030192,48]
[393801574,1763003435326,-150.0,0.00030192,60]
[393801575,1763003435337,-410.45061376,0.00030192,60]
[393801576,1763003435346,-500.0,0.00030192,60]
[393801577,1763003435356,-155.63392892,0.00030192,60]
[393801578,1763003435366,-500.0,0.00030192,60]
[393801579,1763003435376,-500.0,0.00030192,60]
[393801580,1763003435385,-500.0,0.00030192,14]
[393801581,1763003435395,-500.0,0.00030192,2]
[393801582,1763003435404,-500.0,0.00030192,60]
[393801583,1763003435413,-500.0,0.00030192,21]
[393801584,1763003435422,-150.0,0.00030192,60]
[393801585,1763003435432,-173.11884486,0.00030192,60]
[393801586,1763003435442,-349.4115802,0.00030192,60]
[393801587,1763003435452,-500.0,0.00030192,60]
[393801588,1763003435462,-472.0,0.00030192,60]
[393801589,1763003435471,-650.0,0.00030192,60]
[393801590,1763003435481,-500.0,0.00030192,60]
[393801591,1763003435491,-441.0,0.00030192,2]
[393801592,1763003435501,-800.0,0.00030192,60]
[393801593,1763003435510,-224.463566,0.00030192,31]
[393801594,1763003435520,-151.0,0.00030192,31]
[393801595,1763003435531,-151.0,0.00030192,31]
[393801596,1763003435541,-151.0,0.00030192,31]
[393801597,1763003435550,-151.0,0.00030192,31]
[393801598,1763003435560,-154.038947,0.00030192,30]
[393801599,1763003435570,-17339.4918433,0.00030199,3]
[393801600,1763003435580,-8669.74592165,0.00030199,3]
[393801601,1763003435589,-592.48,0.000302,7]
[393801602,1763003435599,-8669.74592165,0.00030209,3]
[393801603,1763003435612,-151.0,0.00030209,31]
[393801604,1763003435622,-151.0,0.00030209,31]
[393801605,1763003435631,-151.0,0.00030209,31]
[393801606,1763003435640,-152.870827,0.00030209,31]
[393801607,1763003435650,-252.227794,0.00030209,31]
[393801608,1763003435660,-151.0,0.00030209,31]
[393801609,1763003435669,-151.0,0.00030209,31]
[393801610,1763003435678,-158.44324,0.00030209,31]
[393801611,1763003435687,-151.0,0.00030209,31]
[393801612,1763003435696,-151.0,0.00030209,31]
[393801613,1763003435705,-198.522674,0.00030209,31]
[393801614,1763003435714,-898.844449,0.00030209,30]
[393801615,1763003435724,-898.844449,0.00030209,30]
[393801616,1763003435733,-151.0,0.00030209,31]
[393801617,1763003435742,-182.997364,0.00030209,31]
[393801618,1763003435751,-898.844449,0.00030209,30]
[393801619,1763003435760,-182.997364,0.00030209,31]
[393801620,1763003435769,-898.844449,0.00030209,30]
[393801621,1763003435778,-182.997364,0.00030209,31]
[393801622,1763003435787,-182.997364,0.00030209,31]
[393801623,1763003435795,-6013.369629,0.00030209,28]
[393801624,1763003435804,-6013.369629,0.00030209,28]
[393801625,1763003435813,-151.0,0.00030209,31]
[393801626,1763003435822,-6013.369629,0.00030209,28]
[393801627,1763003435831,-6013.369629,0.00030209,28]
[393801628,1763003435839,-151.0,0.00030209,31]
[393801629,1763003435848,-151.0,0.00030209,31]
[393801630,1763003435857,-151.0,0.00030209,31]
[393801631,1763003435868,-151.0,0.00030209,31]
[393801632,1763003435878,-151.0,0.00030209,31]
[393801633,1763003435887,-172.503082,0.00030209,31]
[393801634,1763003435896,-151.0,0.00030209,31]
[393801635,1763003435905,-151.0,0.00030209,31]
[393801636,1763003435914,-151.0,0.00030209,31]
[393801637,1763003435923,-151.0,0.00030209,31]
[393801638,1763003435932,-199.007757,0.00030209,31]
[393801639,1763003435942,-151.0,0.00030209,31]
[393801640,1763003435951,-199.007757,0.00030209,31]
[393801641,1763003435960,-151.0,0.00030209,31]
[393801642,1763003435970,-151.0,0.00030209,31]
[393801643,1763003435979,-199.007757,0.00030209,31]
[393801644,1763003435988,-199.007757,0.00030209,31]
[393801645,1763003435998,-151.0,0.00030209,30]
[393801646,1763003436007,-246.496274,0.00030209,30]
[393801647,1763003436016,-151.0,0.00030209,31]
[393801648,1763003436026,-151.0,0.00030209,31]
[393801649,1763003436035,-8669.74592165,0.00030209,3]
[393801650,1763003436045,-151.0,0.00030219,31]
[393801651,1763003436054,-151.0,0.00030219,31]
[393801652,1763003436064,-151.0,0.00030219,31]
[393801653,1763003436075,-151.0,0.00030219,31]
[393801654,1763003436085,-254.927543,0.00030219,31]
[393801655,1763003436096,-254.927543,0.00030219,31]
[393801656,1763003436106,-254.927543,0.00030219,31]
[393801657,1763003436117,-254.927543,0.00030219,31]
[393801658,1763003436126,-151.0,0.00030219,31]
[393801659,1763003436135,-151.0,0.00030219,31]
[393801660,1763003436145,-151.0,0.00030219,31]
[393801661,1763003436154,-151.0,0.00030219,31]
[393801662,1763003436164,-267.406014,0.00030219,31]
[393801663,1763003436173,-267.406014,0.00030219,31]
[393801664,1763003436182,-151.0,0.00030219,31]
[393801665,1763003436191,-267.406014,0.00030219,31]
[393801666,1763003436201,-267.406014,0.00030219,31]
[393801667,1763003436210,-482.035861,0.00030219,31]
[393801668,1763003436220,-482.035861,0.00030219,31]
[393801669,1763003436355,-482.035861,0.00030219,31]
[393801670,1763003436367,-482.035861,0.00030219,31]
[393801671,1763003436377,-152.085378,0.00030219,31]
[393801672,1763003436386,-151.0,0.00030219,31]
[393801673,1763003436395,-157.243036,0.00030219,31]
[393801674,1763003436405,-157.135353,0.00030219,31]
[393801675,1763003436414,-229.215502,0.00030219,31]
[393801676,1763003436423,-229.215502,0.00030219,31]
[393801677,1763003436433,-151.0,0.00030219,31]
[393801678,1763003436443,-229.215502,0.00030219,31]
[393801679,1763003436452,-151.0,0.00030219,31]
[393801680,1763003436462,-151.0,0.00030219,31]
[393801681,1763003436471,-229.215502,0.00030219,31]
[393801682,1763003436481,-155.733548,0.00030219,31]
[393801683,1763003436490,-151.0,0.00030219,31]
[393801684,1763003436499,-263.710759,0.00030219,31]
[393801685,1763003436508,-151.0,0.00030219,31]
[393801686,1763003436518,-151.0,0.00030219,31]
[393801687,1763003436532,-151.0,0.00030219,31]
[393801688,1763003436541,-225.64287,0.00030219,31]
[393801689,1763003436550,-225.64287,0.00030219,31]
[393801690,1763003436559,-225.64287,0.00030219,31]
[393801691,1763003436570,-225.64287,0.00030219,31]
[393801692,1763003436579,-188.936912,0.00030219,31]
[393801693,1763003436588,-151.0,0.00030219,30]
[393801694,1763003436597,-151.0,0.00030219,31]
[393801695,1763003436607,-151.0,0.00030219,30]
[393801696,1763003436617,-188.936912,0.00030219,31]
[393801697,1763003436626,-188.936912,0.00030219,31]
[393801698,1763003436635,-151.0,0.00030219,31]
[393801699,1763003436644,-188.936912,0.00030219,31]
[393801700,1763003436653,-151.0,0.00030219,31]
[393801701,1763003436663,-151.0,0.00030219,30]
[393801702,1763003436671,-151.0,0.00030219,31]
[393801703,1763003436680,-155.330896,0.00030219,30]
[393801704,1763003436690,-151.0,0.00030219,31]
[393801705,1763003436699,-151.0,0.00030219,31]
[393801706,1763003436708,-153.82706,0.00030219,31]
[393801707,1763003436717,-151.0,0.00030219,31]
[393801708,1763003436727,-154.665374,0.00030219,31]
[393801709,1763003436736,-165.240332,0.00030219,31]
[393801710,1763003436747,-151.0,0.00030219,31]
[393801711,1763003436759,-153.237388,0.00030219,31]
[393801712,1763003436769,-151.0,0.00030219,31]
[393801713,1763003436778,-153.435353,0.00030219,31]
[393801714,1763003436788,-248.752939,0.00030219,31]
[393801715,1763003436798,-161.033961,0.00030219,31]
[393801716,1763003436807,-11772.66617992,0.00030219,2]
[393801717,1763003436816,-150.0,0.00030219,60]
[393801718,1763003436826,-150.0,0.00030219,60]
[393801719,1763003436837,-562.85642092,0.00030219,60]
[393801720,1763003436846,-500.0,0.00030219,48]
[393801721,1763003436855,-150.0,0.00030219,60]
[393801722,1763003436865,-272.00079718,0.00030219,60]
[393801723,1763003436874,-500.0,0.00030219,60]
[393801724,1763003436883,-294.12430704,0.00030219,60]
[393801725,1763003436892,-500.0,0.00030219,14]
[393801726,1763003436902,-500.0,0.00030219,2]
[393801727,1763003436911,-500.0,0.00030219,60]
[393801728,1763003436920,-500.0,0.00030219,21]
[393801729,1763003436929,-150.0,0.00030219,60]
[393801730,1763003436939,-500.0,0.00030219,60]
[393801731,1763003436949,-472.0,0.00030219,60]
[393801732,1763003436958,-650.0,0.00030219,60]
[393801733,1763003436968,-500.0,0.00030219,60]
[393801734,1763003436977,-441.0,0.00030219,2]
[393801735,1763003436987,-800.0,0.00030219,60]
[393801736,1763003436996,-198.92754469,0.00030247,60]
[393801737,1763003437005,-150.0,0.00030247,60]